bitfinex/quotes_BTCUSD_20241123
["timestamp","ask_amount","ask_price","bid_price","bid_amount"]
[1732382494276,0.12104873,97509.0,97483.0,0.002]
[1732382494549,0.01903446,97508.0,97483.0,0.002]
[1732382494750,0.01903446,97508.0,97480.0,0.24677963]
[1732382494751,0.01903446,97507.0,97482.0,0.002]
[1732382494959,0.01903446,97506.0,97482.0,0.002]
[1732382495412,0.0190352,97505.0,97482.0,0.002]
[1732382495641,0.0190352,97505.0,97459.0,0.2]
[1732382495642,0.0816,97503.0,97460.0,0.14307963]
[1732382495869,0.0816,97500.0,97466.0,0.10373207]
[1732382496133,0.0816,97498.0,97470.0,0.09677963]
[1732382496346,0.12104947,97497.0,97470.0,0.09677963]
[1732382496554,0.0190352,97496.0,97470.0,0.09677963]
[1732382496766,0.0190352,97495.0,97470.0,0.09780547]
[1732382497042,0.0190352,97494.0,97470.0,0.09980547]
[1732382497240,0.0190352,97493.0,97470.0,0.09115739]
[1732382500156,0.0816,97494.0,97480.0,0.09677963]
[1732382501239,0.00102588,97493.0,97480.0,0.09677963]
[1732382503902,0.0816,97494.0,97480.0,0.13878961]
[1732382504111,0.00102588,97493.0,97481.0,0.15]
[1732382504343,0.09137465,97524.0,97481.0,0.15]
[1732382504344,0.00102588,97500.0,97483.0,0.15]
[1732382504556,0.0816,97512.0,97501.0,0.002]
[1732382504771,0.0816,97512.0,97500.0,0.09677963]
[1732382505461,0.0816,97512.0,97501.0,0.002]
[1732382506788,0.0816,97512.0,97501.0,0.152]
[1732382507275,0.0816,97519.0,97501.0,0.152]
[1732382507482,0.0008577,97525.0,97512.0,0.002]
[1732382508831,0.0008577,97525.0,97502.0,0.02190066]
[1732382512529,0.0008577,97525.0,97501.0,0.1963]
[1732382513657,0.0008577,97525.0,97502.0,0.03496571]
[1732382521281,0.0764,97512.0,97501.0,0.15]
[1732382523599,0.00128188,97511.0,97500.0,0.04133273]
[1732382523806,0.10329621,97520.0,97500.0,0.04133273]
[1732382524034,0.10201427,97510.0,97484.0,0.04233164]
[1732382524282,0.00128209,97509.0,97484.0,0.04233164]
[1732382524538,0.10201427,97508.0,97480.0,0.09677963]
[1732382524757,0.00128209,97507.0,97481.0,0.04234826]
[1732382524992,0.00128209,97507.0,97480.0,0.09677963]
[1732382524993,0.10201427,97506.0,97480.0,0.09677963]
[1732382525219,0.0012822,97505.0,97480.0,0.09677963]
[1732382525437,0.10201427,97504.0,97480.0,0.09677963]
[1732382525665,0.0012822,97503.0,97480.0,0.09677963]
[1732382525878,0.10201427,97502.0,97480.0,0.09677963]
[1732382526093,0.0012822,97501.0,97480.0,0.09677963]
[1732382526308,0.0012822,97501.0,97479.0,0.04074919]
[1732382526309,0.10201427,97500.0,97490.0,0.09677963]
[1732382526520,0.07768219,97499.0,97490.0,0.09677963]
[1732382526732,0.17969646,97499.0,97490.0,0.09677963]
[1732382527189,0.0764,97499.0,97490.0,0.09677963]
[1732382528308,0.00128206,97498.0,97490.0,0.09677963]
[1732382529201,0.0764,97499.0,97490.0,0.09677963]
[1732382530615,0.0012821,97498.0,97490.0,0.09677963]
[1732382531810,0.0012821,97497.0,97481.0,0.1517176]
[1732382532742,0.00128217,97496.0,97481.0,0.1517176]
[1732382532954,0.00128217,97498.0,97481.0,0.1517176]
[1732382533865,0.0758,97497.0,97481.0,0.0017176]
[1732382534116,0.00128221,97496.0,97481.0,0.0017176]
[1732382534805,0.10201427,97495.0,97481.0,0.0017176]
[1732382535055,0.12408232,97494.0,97481.0,0.0017176]
[1732382535289,0.17781427,97493.0,97481.0,0.0017176]
[1732382535530,0.07708232,97492.0,97481.0,0.0017176]
[1732382535744,0.10201427,97491.0,97481.0,0.0017176]
[1732382535959,0.00128232,97490.0,97481.0,0.0017176]
[1732382536178,0.10329659,97490.0,97481.0,0.0017176]
[1732382537501,0.10329659,97490.0,97480.0,0.09677963]
[1732382538257,0.0758,97492.0,97480.0,0.09677963]
[1732382538496,0.07708223,97492.0,97480.0,0.09677963]
[1732382538981,0.00128223,97491.0,97480.0,0.09677963]
[1732382539652,0.00128223,97491.0,97481.0,0.0017176]
[1732382540111,0.00128223,97491.0,97483.0,0.1994]
[1732382540327,0.0758,97511.0,97484.0,0.00102566]
[1732382540328,0.00128208,97510.0,97484.0,0.00102566]
[1732382540551,0.10201427,97509.0,97500.0,0.09677963]
[1732382540771,0.00128207,97508.0,97500.0,0.09677963]
[1732382540994,0.10201427,97507.0,97500.0,0.09677963]
[1732382542850,0.00128207,97506.0,97490.0,0.09677963]
[1732382544513,0.10329636,97507.0,97490.0,0.09677963]
[1732382544722,0.00128209,97506.0,97490.0,0.09677963]
[1732382544971,0.0758,97511.0,97497.0,0.09677963]
[1732382545204,0.0758,97518.0,97498.0,0.00102553]
[1732382545457,0.00128187,97517.0,97497.0,0.24677963]
[1732382545905,0.00128187,97517.0,97500.0,0.09677963]
[1732382546154,0.0758,97530.0,97501.0,0.00102543]
[1732382546373,0.00128179,97529.0,97501.0,0.00102543]
[1732382546612,0.00128179,97529.0,97500.0,0.09677963]
[1732382547065,0.00128179,97529.0,97501.0,0.00102543]
[1732382548213,0.0008583,97531.0,97505.0,0.15]
[1732382548492,0.0008583,97531.0,97512.0,0.173]
[1732382548710,0.0008583,97531.0,97512.0,0.35171427]
[1732382549603,0.0008583,97531.0,97512.0,0.32871427]
[1732382551841,0.0008583,97531.0,97512.0,0.83874102]
[1732382552074,0.0008583,97531.0,97520.0,0.3229]
[1732382552297,0.0008587,97544.0,97512.0,0.31584102]
[1732382552298,0.00319408,97535.0,97531.0,0.173]
[1732382552536,0.00319408,97535.0,97534.0,0.223]
[1732382552755,0.00319408,97535.0,97534.0,0.7496265]
[1732382552987,0.00319408,97535.0,97534.0,0.69880288]
[1732382553203,0.00256971,97535.0,97534.0,0.77550288]
[1732382553449,0.00256971,97535.0,97534.0,0.57550288]
[1732382553678,0.00256971,97535.0,97534.0,0.52601487]
[1732382554353,0.00256971,97535.0,97534.0,0.56275318]
[1732382554796,0.00256971,97535.0,97534.0,0.57221487]
[1732382555023,0.0008587,97544.0,97543.0,0.4]
[1732382555250,0.0008587,97544.0,97543.0,0.64635893]
[1732382555695,0.0008587,97544.0,97543.0,0.81935893]
[1732382555905,0.0008587,97544.0,97543.0,0.83181245]
[1732382556120,0.0147119,97589.0,97543.0,0.83181245]
[1732382556121,0.0147119,97589.0,97557.0,0.4]
[1732382556332,0.0147119,97589.0,97565.0,0.09677963]
[1732382556545,0.0147119,97589.0,97571.0,0.15]
[1732382556753,0.0147119,97589.0,97573.0,0.15]
[1732382557001,0.0147119,97589.0,97574.0,0.26376115]
[1732382557232,0.0147119,97589.0,97574.0,0.27345893]
[1732382557694,0.0147119,97589.0,97574.0,0.11466977]
[1732382559127,0.0208587,97582.0,97574.0,0.10201427]
[1732382559339,0.0208587,97582.0,97572.0,0.09677963]
[1732382559585,0.0208587,97582.0,97545.0,0.02025822]
[1732382559822,0.10329524,97581.0,97562.0,0.04200711]
[1732382560036,0.10329524,97581.0,97538.0,0.2]
[1732382560247,0.00128104,97580.0,97538.0,0.2]
[1732382560472,0.15309535,97579.0,97538.0,0.2]
[1732382560679,0.15309535,97579.0,97556.0,0.04106514]
[1732382561376,0.15309535,97579.0,97557.0,0.15]
[1732382562952,0.15309535,97579.0,97556.0,0.04106514]
[1732382562953,0.023,97577.0,97556.0,0.04106514]
[1732382563160,0.10329556,97576.0,97556.0,0.04106514]
[1732382563366,0.023,97575.0,97541.0,0.00102503]
[1732382563577,0.10329555,97574.0,97550.0,0.09677963]
[1732382564030,0.10329555,97574.0,97540.0,0.09677963]
[1732382564243,0.0761,97573.0,97540.0,0.09677963]
[1732382564457,0.10329555,97572.0,97540.0,0.09677963]
[1732382564689,0.10329555,97572.0,97550.0,0.09677963]
[1732382565186,0.09829555,97572.0,97550.0,0.09677963]
[1732382565655,0.09829555,97572.0,97540.0,0.09677963]
[1732382565877,0.00128128,97571.0,97540.0,0.09677963]
[1732382566124,0.0761,97569.0,97530.0,0.09677963]
[1732382566332,0.10329557,97568.0,97540.0,0.09677963]
[1732382566555,0.10329557,97568.0,97530.0,0.09677963]
[1732382566774,0.1259,97567.0,97530.0,0.09677963]
[1732382567010,0.10329565,97566.0,97530.0,0.09677963]
[1732382567223,0.002,97564.0,97530.0,0.09677963]
[1732382567434,0.0498,97567.0,97530.0,0.09677963]
[1732382567435,0.17939567,97563.0,97530.0,0.09677963]
[1732382569004,0.17939567,97563.0,97540.0,0.09677963]
[1732382569490,0.17939567,97563.0,97550.0,0.09677963]
[1732382569491,0.17811427,97563.0,97550.0,0.09677963]
[1732382570372,0.0761,97563.0,97551.0,0.00102499]
[1732382571481,0.0761,97563.0,97550.0,0.09677963]
[1732382571894,0.023,97588.0,97550.0,0.09677963]
[1732382572124,0.023,97584.0,97560.0,0.09677963]
[1732382572337,0.10201427,97583.0,97560.0,0.09677963]
[1732382572545,0.10201427,97583.0,97551.0,0.15]
[1732382572546,0.10201427,97582.0,97551.0,0.15]
[1732382573229,0.07514568,97594.0,97550.0,0.09677963]
[1732382573463,0.04181669,97593.0,97560.0,0.09677963]
[1732382573680,0.07514568,97598.0,97560.0,0.09677963]
[1732382573898,0.04124778,97596.0,97560.0,0.09677963]
[1732382574182,0.07514568,97598.0,97557.0,0.15]
[1732382574424,0.04135575,97597.0,97557.0,0.15]
[1732382574643,0.023,97608.0,97557.0,0.15]
[1732382574858,0.01072908,97595.0,97553.0,0.2]
[1732382575069,0.01072908,97595.0,97554.0,0.15]
[1732382575070,0.0824,97593.0,97554.0,0.15]
[1732382575387,0.61553874,97620.0,97554.0,0.15]
[1732382575602,0.09677963,97610.0,97554.0,0.15]
[1732382575847,0.0008581,97597.0,97554.0,0.15]
[1732382576092,0.09677963,97610.0,97554.0,0.15]
[1732382576745,0.10201427,97600.0,97554.0,0.15]
[1732382576951,0.10201427,97600.0,97560.0,0.09677963]
[1732382577369,0.10201427,97599.0,97560.0,0.09677963]
[1732382578025,0.023,97619.0,97560.0,0.1987939]
[1732382578243,0.10201427,97598.0,97561.0,0.03487939]
[1732382578468,0.1299,97597.0,97560.0,0.09677963]
[1732382578673,0.1299,97597.0,97556.0,0.423]
[1732382578674,0.03191427,97597.0,97570.0,0.09677963]
[1732382579321,0.09677963,97620.0,97557.0,0.2]
[1732382579322,0.10201427,97596.0,97563.0,0.023]
[1732382579538,0.10201427,97596.0,97565.0,0.023]
[1732382579752,0.09677963,97620.0,97565.0,0.023]
[1732382579753,0.15,97619.0,97565.0,0.023]
[1732382579959,0.04893774,97620.0,97565.0,0.023]
[1732382580560,0.09677963,97620.0,97565.0,0.023]
[1732382580868,0.09677963,97620.0,97567.0,0.023]
[1732382581326,0.04172193,97625.0,97580.0,0.09677963]
[1732382581553,0.04172193,97625.0,97581.0,0.27501427]
[1732382581823,0.0824,97627.0,97590.0,0.09677963]
[1732382582289,0.0824,97627.0,97591.0,0.35561427]
[1732382584115,0.0824,97627.0,97600.0,0.09677963]
[1732382584349,0.0824,97627.0,97601.0,0.15967796]
[1732382585579,0.0824,97627.0,97610.0,0.09677963]
[1732382585797,0.025,97628.0,97610.0,0.09677963]
[1732382586013,0.025,97628.0,97602.0,0.15]
[1732382586467,0.025,97628.0,97610.0,0.09677963]
[1732382586704,0.025,97628.0,97611.0,0.01999636]
[1732382587454,0.025,97628.0,97611.0,0.16999636]
[1732382587673,0.025,97628.0,97618.0,0.09677963]
[1732382587918,0.025,97628.0,97620.0,0.15]
[1732382588563,0.025,97628.0,97622.0,0.173]
[1732382588776,0.025,97628.0,97625.0,0.023]
[1732382589685,0.025,97628.0,97624.0,0.15]
[1732382589914,0.025,97628.0,97602.0,0.2488]
[1732382589915,0.06594918,97628.0,97603.0,0.15]
[1732382590149,0.06594918,97628.0,97602.0,0.0488]
[1732382590150,0.0647037,97628.0,97605.0,0.15]
[1732382590380,0.02375452,97628.0,97610.0,0.09677963]
[1732382590593,0.02375452,97628.0,97611.0,0.18546887]
[1732382591069,0.06562078,97628.0,97611.0,0.18546887]
[1732382591288,0.02375452,97628.0,97611.0,0.18546887]
[1732382592178,0.02375452,97628.0,97611.0,0.03546887]
[1732382592406,0.02375452,97628.0,97605.0,0.15]
[1732382592656,0.02375452,97628.0,97610.0,0.09677963]
[1732382593083,0.02375452,97628.0,97611.0,0.10201427]
[1732382596470,0.01990221,97628.0,97612.0,0.35]
[1732382596693,0.01990221,97628.0,97618.0,0.09677963]
[1732382597205,0.01990221,97628.0,97620.0,0.2317]
[1732382597418,0.01990221,97628.0,97625.0,0.15]
[1732382597666,0.01990221,97628.0,97626.0,0.10201427]
[1732382598783,0.01990221,97628.0,97627.0,0.15]
[1732382599004,0.01990221,97628.0,97627.0,0.26312951]
[1732382600197,0.02075991,97628.0,97627.0,0.26312951]
[1732382600648,0.02075991,97628.0,97627.0,0.68612951]
[1732382600894,0.000859,97633.0,97627.0,0.68612951]
[1732382600895,0.000859,97633.0,97632.0,0.7001]
[1732382601137,0.000859,97633.0,97632.0,0.85699366]
[1732382601653,0.000859,97633.0,97632.0,0.65699366]
[1732382601909,0.000859,97633.0,97632.0,0.63399366]
[1732382602143,0.000859,97633.0,97632.0,0.43399366]
[1732382602587,0.00023626,97633.0,97632.0,0.63399366]
[1732382603899,0.00023626,97633.0,97632.0,0.65699366]
[1732382604845,0.00023626,97633.0,97632.0,0.85699366]
[1732382608674,0.0008585,97661.0,97632.0,0.85699366]
[1732382608675,0.0008585,97661.0,97654.0,0.2752]
[1732382608897,0.0008585,97661.0,97656.0,0.15]
[1732382609118,0.0008585,97661.0,97657.0,0.10201427]
[1732382609358,0.0008585,97661.0,97660.0,0.35]
[1732382609592,0.0008585,97661.0,97660.0,0.45201427]
[1732382609806,0.0008585,97661.0,97660.0,0.50689366]
[1732382610330,0.0008585,97661.0,97650.0,0.2]
[1732382610567,0.0008585,97661.0,97652.0,0.15]
[1732382610780,0.0008585,97661.0,97640.0,0.2]
[1732382611027,0.0008585,97661.0,97642.0,0.15]
[1732382611269,0.0008585,97661.0,97644.0,0.15]
[1732382611496,0.0008585,97661.0,97644.0,0.25201427]
[1732382613531,0.00023576,97661.0,97644.0,0.25201427]
[1732382614897,0.00023576,97661.0,97646.0,0.15]
[1732382615146,0.00023576,97661.0,97647.0,0.1480089]
[1732382615330,0.00023576,97661.0,97648.0,0.15]
[1732382615560,0.00023576,97661.0,97649.0,0.10201427]
[1732382615992,0.00023576,97661.0,97650.0,0.15]
[1732382616917,0.00023576,97661.0,97647.0,0.04599463]
[1732382617157,0.00023576,97661.0,97648.0,0.01959946]
[1732382619140,0.00023576,97661.0,97650.0,0.24677963]
[1732382619356,0.00023576,97661.0,97650.0,0.15]
[1732382619808,0.00054152,97666.0,97650.0,0.10201427]
[1732382620027,0.00054152,97666.0,97651.0,0.11897422]
[1732382620729,0.00054152,97666.0,97652.0,0.0467]
[1732382620952,0.00054152,97666.0,97654.0,0.15]
[1732382621210,0.00054152,97666.0,97653.0,0.18051427]
[1732382621211,0.00054152,97666.0,97655.0,0.10201427]
[1732382621425,0.00054152,97666.0,97656.0,0.02943522]
[1732382621646,0.00054152,97666.0,97656.0,0.13144949]
[1732382622090,0.00054152,97666.0,97657.0,0.10201427]
[1732382622310,0.00054152,97666.0,97665.0,0.35]
[1732382622518,0.00054152,97666.0,97665.0,0.23201445]
[1732382622765,0.00054152,97666.0,97665.0,0.25161391]
[1732382623423,0.00054152,97666.0,97665.0,0.13000018]
[1732382623638,0.00054152,97666.0,97656.0,0.02943522]
[1732382623861,0.00054152,97666.0,97648.0,0.13706411]
[1732382624144,0.00054152,97666.0,97649.0,0.10201427]
[1732382624362,0.00054152,97666.0,97650.0,0.09677963]
[1732382624606,0.00054152,97666.0,97651.0,0.10201427]
[1732382625033,0.00054152,97666.0,97652.0,0.15]
[1732382625247,0.00054152,97666.0,97654.0,0.15]
[1732382625969,0.00054152,97666.0,97656.0,0.15]
[1732382626190,0.00054152,97666.0,97658.0,0.15]
[1732382626444,0.00054152,97666.0,97662.0,0.15]
[1732382626683,0.00054152,97666.0,97665.0,0.28706411]
[1732382626898,0.00054152,97666.0,97665.0,0.51427838]
[1732382628935,0.00054152,97666.0,97665.0,0.55663539]
[1732382630058,0.00054152,97666.0,97665.0,0.38907838]
[1732382630283,0.00054152,97666.0,97665.0,0.02035282]
[1732382630770,0.00054152,97666.0,97665.0,0.17315862]
[1732382630993,0.00054152,97666.0,97665.0,0.15741693]
[1732382631705,0.00054152,97666.0,97665.0,0.28501693]
[1732382631962,0.00054152,97666.0,97665.0,0.28701693]
[1732382632402,0.00054152,97666.0,97665.0,0.43701693]
[1732382634417,0.00054152,97666.0,97665.0,0.43501693]
[1732382634634,0.00054152,97666.0,97665.0,0.43701693]
[1732382635916,0.00054152,97666.0,97665.0,0.28918144]
[1732382636130,0.00054152,97666.0,97665.0,0.3310232]
[1732382636780,0.00054152,97666.0,97665.0,0.3290232]
[1732382637719,0.00054152,97666.0,97665.0,0.29385603]
[1732382638878,0.00054152,97666.0,97665.0,0.0925726]
[1732382639098,0.00054152,97666.0,97665.0,0.2201726]
[1732382639824,0.00054152,97666.0,97665.0,0.26068506]
[1732382641376,0.00054152,97666.0,97665.0,0.41068506]
[1732382646308,0.00054152,97666.0,97665.0,0.28308506]
[1732382648762,0.00054152,97666.0,97665.0,0.31793799]
[1732382649426,0.00054152,97666.0,97665.0,0.35394874]
[1732382650077,0.00054152,97666.0,97665.0,0.31909581]
[1732382650509,0.00054152,97666.0,97665.0,0.34209581]
[1732382650723,0.00054152,97666.0,97665.0,0.47059581]
[1732382652288,0.0147119,97687.0,97686.0,0.373]
[1732382652504,0.0147119,97687.0,97686.0,0.40151427]
[1732382652727,0.0147119,97687.0,97686.0,0.37851427]
[1732382652942,0.0147119,97687.0,97686.0,0.38051427]
[1732382653209,0.0147119,97687.0,97686.0,0.25201427]
[1732382653440,0.0147119,97687.0,97686.0,0.2926233]
[1732382653648,0.0147119,97687.0,97677.0,0.09677963]
[1732382653882,0.0147119,97687.0,97678.0,0.10201427]
[1732382654546,0.0147119,97687.0,97662.0,0.22809268]
[1732382654547,0.0147119,97687.0,97663.0,0.0815]
[1732382654754,0.0147119,97687.0,97670.0,0.09677963]
[1732382654990,0.0147119,97687.0,97671.0,0.10201427]
[1732382655194,0.0147119,97687.0,97663.0,0.0815]
[1732382655418,0.0147119,97687.0,97664.0,0.10303793]
[1732382655630,0.0147119,97687.0,97670.0,0.09677963]
[1732382655866,0.0147119,97687.0,97671.0,0.00102366]
[1732382656080,0.0147119,97687.0,97663.0,0.0815]
[1732382656081,0.0147119,97687.0,97672.0,0.10201427]
[1732382658549,0.0147119,97687.0,97673.0,0.15]
[1732382658770,0.0147119,97687.0,97674.0,0.10201427]
[1732382659244,0.0147119,97687.0,97675.0,0.00102356]
[1732382659476,0.0147119,97687.0,97676.0,0.10201427]
[1732382659704,0.0147119,97687.0,97677.0,0.15102353]
[1732382659705,0.0155702,97687.0,97677.0,0.15102353]
[1732382659932,0.0155702,97687.0,97679.0,0.15]
[1732382660146,0.0155702,97687.0,97680.0,0.10303778]
[1732382660368,0.0155702,97687.0,97681.0,0.15]
[1732382660576,0.0155702,97687.0,97683.0,0.15]
[1732382660791,0.0155702,97687.0,97685.0,0.15]
[1732382661020,0.0155702,97687.0,97677.0,0.0001435]
[1732382661021,0.0155702,97687.0,97686.0,0.25201427]
[1732382662603,0.0155702,97687.0,97686.0,0.29314498]
[1732382664656,0.0155702,97687.0,97686.0,0.37464498]
[1732382664875,0.0155702,97687.0,97686.0,0.37664498]
[1732382665337,0.0155702,97687.0,97686.0,0.37464498]
[1732382665986,0.0155702,97687.0,97686.0,0.42164498]
[1732382667781,0.0155702,97687.0,97686.0,0.41964498]
[1732382668034,0.0155702,97687.0,97686.0,0.64789265]
[1732382668250,0.0155702,97687.0,97686.0,0.41964498]
[1732382668718,0.0155702,97687.0,97686.0,0.52142968]
[1732382668947,0.0155702,97687.0,97686.0,0.29314498]
[1732382669644,0.04160019,97730.0,97686.0,0.29314498]
[1732382669645,0.04160019,97730.0,97718.0,0.15]
[1732382669902,0.0766,97751.0,97720.0,0.10201427]
[1732382670142,0.09677963,97770.0,97720.0,0.25201427]
[1732382670375,0.0475,97737.0,97711.0,0.15]
[1732382670657,0.0475,97737.0,97714.0,0.19208154]
[1732382670885,0.0475,97737.0,97710.0,0.09677963]
[1732382670886,0.0475,97737.0,97716.0,0.15]
[1732382671118,0.0475,97737.0,97716.0,0.25201427]
[1732382671815,0.0258583,97721.0,97716.0,0.15]
[1732382672045,0.0258583,97721.0,97711.0,0.15]
[1732382672283,0.0258583,97721.0,97713.0,0.15]
[1732382672436,0.0258583,97721.0,97715.0,0.15]
[1732382674797,0.0258583,97721.0,97717.0,0.15]
[1732382675016,0.0258583,97721.0,97716.0,0.10303747]
[1732382675017,0.0258583,97721.0,97719.0,0.2281]
[1732382675234,0.0258583,97721.0,97720.0,0.25201427]
[1732382676551,0.0258583,97721.0,97720.0,0.35961427]
[1732382676775,0.0258583,97721.0,97720.0,0.25201427]
[1732382677054,0.0258583,97721.0,97720.0,0.10401427]
[1732382677523,0.0258583,97721.0,97720.0,0.10201427]
[1732382677745,0.0258583,97721.0,97720.0,0.14272957]
[1732382678400,0.0258583,97721.0,97720.0,0.14472957]
[1732382679053,0.0258583,97721.0,97720.0,0.29272957]
[1732382680798,0.0258583,97721.0,97720.0,0.29472957]
[1732382681633,0.0258583,97721.0,97720.0,0.29272957]
[1732382683832,0.0258583,97721.0,97720.0,0.32704339]
[1732382684051,0.0258583,97721.0,97720.0,0.40554339]
[1732382684807,0.0258583,97721.0,97720.0,0.32704339]
[1732382688398,0.0258583,97721.0,97720.0,0.07502912]
[1732382688599,0.0258583,97721.0,97720.0,0.03431382]
[1732382689479,0.0258583,97721.0,97720.0,0.25171353]
[1732382691297,0.0258583,97721.0,97700.0,0.09677963]
[1732382691510,0.0258583,97721.0,97701.0,0.10201427]
[1732382692411,0.0258583,97721.0,97702.0,0.15]
[1732382692614,0.0258583,97721.0,97704.0,0.15]
[1732382692825,0.0258583,97721.0,97706.0,0.15]
[1732382693054,0.0258583,97721.0,97708.0,0.15]
[1732382693291,0.0258583,97721.0,97710.0,0.15]
[1732382693541,0.0258583,97721.0,97712.0,0.15]
[1732382693750,0.0258583,97721.0,97714.0,0.15]
[1732382693983,0.0258583,97721.0,97715.0,0.00102319]
[1732382694207,0.0258583,97721.0,97714.0,0.15]
[1732382695586,0.0258583,97721.0,97712.0,0.04041454]
[1732382695792,0.0258583,97721.0,97712.0,0.10201427]
[1732382696475,0.0258583,97721.0,97712.0,0.10373027]
[1732382698562,0.0258583,97721.0,97694.0,0.15]
[1732382698793,0.0258583,97721.0,97700.0,0.09677963]
[1732382699011,0.0258583,97721.0,97710.0,0.09677963]
[1732382700582,0.0258583,97721.0,97694.0,0.15]
[1732382700803,0.0779,97720.0,97695.0,0.10201427]
[1732382701023,0.0779,97720.0,97700.0,0.09677963]
[1732382701264,0.0779,97710.0,97690.0,0.04183636]
[1732382701486,0.0779,97710.0,97700.0,0.09677963]
[1732382701701,0.0779,97710.0,97701.0,0.00102341]
[1732382702172,0.0779,97710.0,97700.0,0.09677963]
[1732382702380,0.0779,97710.0,97690.0,0.13861599]
[1732382703098,0.10201427,97709.0,97690.0,0.04183636]
[1732382703304,0.0486,97708.0,97690.0,0.04183636]
[1732382703513,0.10201427,97707.0,97690.0,0.13861599]
[1732382703985,0.00034788,97703.0,97690.0,0.13861599]
[1732382704193,0.10236215,97703.0,97690.0,0.13861599]
[1732382704396,0.0486,97708.0,97691.0,0.00102353]
[1732382704629,0.0486,97708.0,97698.0,0.09677963]
[1732382707772,0.0486,97708.0,97683.0,0.15]
[1732382707773,0.0486,97708.0,97690.0,0.09677963]
[1732382708240,0.15096215,97708.0,97690.0,0.09677963]
[1732382708454,0.0755,97707.0,97690.0,0.09849603]
[1732382709912,0.0755,97693.0,97690.0,0.0017164]
[1732382711894,0.0459,97692.0,97690.0,0.0017164]
[1732382712319,0.10236215,97691.0,97690.0,0.0017164]
[1732382717327,0.00034788,97685.0,97680.0,0.44773857]
[1732382717566,0.00034788,97681.0,97680.0,0.44773857]
[1732382717810,0.10236215,97681.0,97680.0,0.44773857]
[1732382718254,0.10236215,97681.0,97680.0,0.17829693]
[1732382718687,0.17786215,97681.0,97680.0,0.17829693]
[1732382723975,0.17786215,97681.0,97680.0,0.32829693]
[1732382724216,0.0755,97681.0,97680.0,0.32829693]
[1732382724438,0.0755,97690.0,97680.0,0.3596367]
[1732382724653,0.00034788,97701.0,97681.0,0.15102361]
[1732382724885,0.10201427,97700.0,97691.0,0.09677963]
[1732382727221,0.07584788,97708.0,97691.0,0.09677963]
[1732382727451,0.00034788,97703.0,97691.0,0.09677963]
[1732382727696,0.0755,97708.0,97692.0,0.00102353]
[1732382727905,0.00034788,97711.0,97698.0,0.09677963]
[1732382728109,0.10236215,97711.0,97698.0,0.09677963]
[1732382731169,0.0008583,97700.0,97698.0,0.09677963]
[1732382731375,0.0008583,97700.0,97694.0,0.15]
[1732382731839,0.0008583,97700.0,97692.0,0.22779226]
[1732382731840,0.0008583,97700.0,97692.0,0.15]
[1732382732056,0.0008583,97700.0,97694.0,0.22779226]
[1732382732268,0.0008583,97700.0,97695.0,0.15102343]
[1732382733557,0.0008583,97700.0,97697.0,0.15]
[1732382733986,0.0008583,97700.0,97697.0,0.37779226]
[1732382734214,0.0008583,97700.0,97697.0,0.15]
[1732382734798,0.0008583,97700.0,97695.0,0.22779226]
[1732382734799,0.0008583,97700.0,97695.0,0.15]
[1732382735581,0.0008583,97700.0,97696.0,0.00102343]
[1732382735797,0.0008583,97700.0,97697.0,0.15]
[1732382736021,0.0008583,97700.0,97698.0,0.00102343]
[1732382737773,0.0008583,97700.0,97698.0,0.22881569]
[1732382738006,0.0008583,97700.0,97699.0,0.15]
[1732382739135,0.0008583,97700.0,97699.0,0.37779226]
[1732382739555,0.0008583,97700.0,97691.0,0.15]
[1732382739810,0.0008583,97700.0,97699.0,0.37829936]
[1732382740052,0.00034788,97696.0,97692.0,0.22829936]
[1732382740263,0.10201427,97695.0,97691.0,0.15]
[1732382741417,0.10201427,97695.0,97688.0,0.15]
[1732382741637,0.00034788,97694.0,97691.0,0.15]
[1732382742624,0.00034788,97694.0,97688.0,0.15]
[1732382742832,0.10236215,97694.0,97691.0,0.15]
[1732382743988,0.10236215,97694.0,97687.0,0.15]
[1732382744841,0.10236215,97694.0,97687.0,0.37857698]
[1732382745261,0.10236215,97694.0,97687.0,0.15]
[1732382745470,0.10201427,97694.0,97687.0,0.37857698]
[1732382745680,0.10201427,97694.0,97689.0,0.15]
[1732382746318,0.10236215,97694.0,97689.0,0.15]
[1732382746782,0.10236215,97694.0,97688.0,0.15]
[1732382747196,0.10236215,97694.0,97688.0,0.37857698]
[1732382747445,0.10236215,97694.0,97688.0,0.15]
[1732382747661,0.10236215,97694.0,97689.0,0.22857698]
[1732382747873,0.10236215,97694.0,97686.0,0.37857698]
[1732382748091,0.10236215,97694.0,97686.0,0.15]
[1732382748322,0.10236215,97694.0,97680.0,0.31833563]
[1732382748551,0.10236215,97694.0,97681.0,0.00102363]
[1732382748804,0.10236215,97694.0,97680.0,0.01604161]
[1732382749019,0.10236215,97694.0,97684.0,0.09677963]
[1732382749261,0.00034788,97685.0,97684.0,0.09677963]
[1732382749471,0.22481427,97693.0,97661.0,0.002]
[1732382749472,0.1228,97693.0,97670.0,0.09677963]
[1732382749687,0.1228,97693.0,97661.0,0.002]
[1732382749688,0.10201427,97692.0,97680.0,0.09677963]
[1732382750161,0.00034788,97687.0,97680.0,0.09677963]
[1732382750386,0.10201427,97692.0,97680.0,0.09677963]
[1732382750619,0.00034788,97691.0,97680.0,0.09677963]
[1732382750850,0.10236215,97691.0,97680.0,0.09677963]
[1732382751271,0.0463,97690.0,97670.0,0.09677963]
[1732382751497,0.0463,97690.0,97671.0,0.1616766]
[1732382751947,0.10353151,97691.0,97671.0,0.1616766]
[1732382752395,0.10353151,97691.0,97680.0,0.09677963]
[1732382752396,0.10236215,97691.0,97680.0,0.09677963]
[1732382753294,0.10201427,97691.0,97680.0,0.09677963]
[1732382754247,0.10236215,97691.0,97680.0,0.09677963]
[1732382754699,0.10236215,97691.0,97680.0,0.09849623]
[1732382756199,0.30711,97690.0,97680.0,0.09849623]
[1732382757048,0.30711,97690.0,97680.0,0.19527586]
[1732382760405,0.30711,97690.0,97680.0,0.19727586]
[1732382760614,0.30711,97690.0,97680.0,0.19527586]
[1732382760830,0.30711,97690.0,97680.0,0.12807154]
[1732382764409,0.30711,97690.0,97680.0,0.35700256]
[1732382764626,0.30711,97690.0,97680.0,0.12807154]
[1732382765751,0.30711,97690.0,97680.0,0.0017166]
[1732382766211,0.30711,97690.0,97680.0,0.12807154]
[1732382768817,0.00116936,97689.0,97680.0,0.12807154]
[1732382769276,0.00034788,97684.0,97680.0,0.0017166]
[1732382769547,0.00034788,97681.0,97680.0,0.0017166]
[1732382769767,0.18383151,97681.0,97680.0,0.0017166]